[Event "Early-Titled-Tuesday-Blitz-May-14-2024"]
[Site "Chess.com"]
[Date "2024.05.14"]
[Round "7"]
[White "MaxLeto"]
[Black "rionelG"]
[Result "0-1"]
[WhiteElo "2408"]
[BlackElo "2290"]
[TimeControl "180+1"]
[EndTime "9:18:42 PDT"]
[Termination "rionelG won on time"]

1. e4 {[%clk 0:02:43]} 1... c5 {[%clk 0:02:57.1]} 2. Nf3 {[%clk 0:02:43.2]} 2...
d6 {[%clk 0:02:56.1]} 3. d4 {[%clk 0:02:43.7]} 3... cxd4 {[%clk 0:02:57]} 4.
Nxd4 {[%clk 0:02:44.6]} 4... Nf6 {[%clk 0:02:56.4]} 5. Nc3 {[%clk 0:02:45.1]}
5... a6 {[%clk 0:02:56.7]} 6. h3 {[%clk 0:02:45.5]} 6... b5 {[%clk 0:02:54.3]}
7. g4 {[%clk 0:02:43.8]} 7... b4 {[%clk 0:02:52.2]} 8. g5 {[%clk 0:02:39.3]}
8... bxc3 {[%clk 0:02:50.2]} 9. gxf6 {[%clk 0:02:39.4]} 9... gxf6 {[%clk
0:02:38]} 10. Bc4 {[%clk 0:02:19.2]} 10... cxb2 {[%clk 0:02:25.2]} 11. Bxb2
{[%clk 0:01:53.8]} 11... Qa5+ {[%clk 0:02:23.1]} 12. Kf1 {[%clk 0:01:43.9]}
12... Bd7 {[%clk 0:01:45.6]} 13. Nb3 {[%clk 0:01:36.3]} 13... Qc7 {[%clk
0:01:43.4]} 14. Bxf7+ {[%clk 0:01:21.9]} 14... Kd8 {[%clk 0:01:36.8]} 15. Nd4
{[%clk 0:00:52.9]} 15... Qc8 {[%clk 0:01:09.5]} 16. Qh5 {[%clk 0:00:20.7]} 16...
Nc6 {[%clk 0:01:02.8]} 17. Rd1 {[%clk 0:00:18.4]} 17... Nxd4 {[%clk 0:01:00]}
18. Bxd4 {[%clk 0:00:08.1]} 18... Qxc2 {[%clk 0:00:58.4]} 19. Kg2 {[%clk
0:00:02.8]} 19... Qxe4+ {[%clk 0:00:57.5]} 20. Kh2 {[%clk 0:00:02.1]} 20... Qf4+
{[%clk 0:00:55]} 21. Kg2 {[%clk 0:00:02.4]} 21... Bc6+ {[%clk 0:00:53.8]} 22. f3
{[%clk 0:00:01.5]} 22... Rb8 {[%clk 0:00:47.6]} 0-1

[Event "Early-Titled-Tuesday-Blitz-May-14-2024"]
[Site "Chess.com"]
[Date "2024.05.14"]
[Round "7"]
[White "Herzog2012"]
[Black "ArtemDyachuk"]
[Result "1-0"]
[WhiteElo "2569"]
[BlackElo "2695"]
[TimeControl "180+1"]
[EndTime "9:18:44 PDT"]
[Termination "Herzog2012 won on time"]

1. e4 {[%clk 0:03:00.9]} 1... e5 {[%clk 0:02:59.6]} 2. Nc3 {[%clk 0:02:59.5]}
2... Nc6 {[%clk 0:02:59]} 3. g3 {[%clk 0:03:00.1]} 3... Bc5 {[%clk 0:02:57]} 4.
Bg2 {[%clk 0:03:00.1]} 4... d6 {[%clk 0:02:57.4]} 5. Nge2 {[%clk 0:02:59.2]}
5... Nge7 {[%clk 0:02:55.5]} 6. Na4 {[%clk 0:02:59]} 6... O-O {[%clk 0:02:54.1]}
7. Nxc5 {[%clk 0:02:56.4]} 7... dxc5 {[%clk 0:02:55]} 8. O-O {[%clk 0:02:55.9]}
8... Ng6 {[%clk 0:02:52.7]} 9. d3 {[%clk 0:02:53.1]} 9... b6 {[%clk 0:02:52.7]}
10. f4 {[%clk 0:02:52]} 10... f6 {[%clk 0:02:47.3]} 11. f5 {[%clk 0:02:48.9]}
11... Nge7 {[%clk 0:02:47.2]} 12. g4 {[%clk 0:02:48.7]} 12... Qe8 {[%clk
0:02:39.3]} 13. h4 {[%clk 0:02:44.7]} 13... Ba6 {[%clk 0:01:59.9]} 14. b3 {[%clk
0:02:35.1]} 14... Rd8 {[%clk 0:01:59]} 15. Ng3 {[%clk 0:02:31.6]} 15... c4
{[%clk 0:01:56.9]} 16. bxc4 {[%clk 0:02:30]} 16... Bxc4 {[%clk 0:01:57.8]} 17.
g5 {[%clk 0:02:27.1]} 17... Kh8 {[%clk 0:01:44.6]} 18. Qg4 {[%clk 0:02:25.3]}
18... Bg8 {[%clk 0:01:37]} 19. Nh5 {[%clk 0:02:13.5]} 19... Nc8 {[%clk
0:00:21.3]} 20. gxf6 {[%clk 0:02:09.7]} 20... g6 {[%clk 0:00:21.1]} 21. Bh6
{[%clk 0:02:01.5]} 21... Bf7 {[%clk 0:00:21.1]} 22. Bg7+ {[%clk 0:01:48]} 22...
Kg8 {[%clk 0:00:20.8]} 23. Qg5 {[%clk 0:01:45.8]} 23... Nd6 {[%clk 0:00:07.8]}
24. Qh6 {[%clk 0:01:44.3]} 24... Bxa2 {[%clk 0:00:06.1]} 25. Rxa2 {[%clk
0:01:31.6]} 25... Nf7 {[%clk 0:00:05.8]} 26. Qe3 {[%clk 0:01:22.7]} 26... Nd4
{[%clk 0:00:05.6]} 27. c3 {[%clk 0:01:19.8]} 27... Nb3 {[%clk 0:00:03.3]} 28.
Bf3 {[%clk 0:01:15.6]} 28... Nc5 {[%clk 0:00:01.2]} 29. d4 {[%clk 0:01:11.9]}
29... exd4 {[%clk 0:00:00.6]} 30. cxd4 {[%clk 0:01:12.8]} 30... gxh5 {[%clk
0:00:00.5]} 31. Rg2 {[%clk 0:01:10.9]} 1-0

[Event "Early-Titled-Tuesday-Blitz-May-14-2024"]
[Site "Chess.com"]
[Date "2024.05.14"]
[Round "7"]
[White "Zarinur"]
[Black "Buzhizhebuguai"]
[Result "0-1"]
[WhiteElo "2566"]
[BlackElo "2769"]
[TimeControl "180+1"]
[EndTime "9:18:57 PDT"]
[Termination "Buzhizhebuguai won by resignation"]

1. e4 {[%clk 0:03:00.9]} 1... e6 {[%clk 0:02:59.2]} 2. d4 {[%clk 0:02:58.5]}
2... d5 {[%clk 0:02:59.7]} 3. e5 {[%clk 0:02:58.9]} 3... c5 {[%clk 0:02:59.7]}
4. c3 {[%clk 0:02:59.6]} 4... Qb6 {[%clk 0:03:00.3]} 5. Nf3 {[%clk 0:03:00]}
5... Nc6 {[%clk 0:03:01]} 6. Bd3 {[%clk 0:02:59.6]} 6... cxd4 {[%clk 0:03:00.7]}
7. O-O {[%clk 0:02:58.3]} 7... Bd7 {[%clk 0:03:00.8]} 8. Re1 {[%clk 0:02:58.6]}
8... a6 {[%clk 0:03:00.2]} 9. Nbd2 {[%clk 0:02:40.1]} 9... Nge7 {[%clk
0:02:59.2]} 10. cxd4 {[%clk 0:02:27.9]} 10... Ng6 {[%clk 0:02:57.1]} 11. Nb3
{[%clk 0:02:24.1]} 11... Be7 {[%clk 0:02:53.4]} 12. g3 {[%clk 0:02:03.4]} 12...
Nb4 {[%clk 0:02:51.9]} 13. Bb1 {[%clk 0:01:56.6]} 13... Ba4 {[%clk 0:02:51.6]}
14. h4 {[%clk 0:01:51.7]} 14... h6 {[%clk 0:02:51.4]} 15. Be3 {[%clk 0:01:27.6]}
15... Nf8 {[%clk 0:02:48.4]} 16. Nfd2 {[%clk 0:01:21.3]} 16... Rc8 {[%clk
0:02:41.5]} 17. Qg4 {[%clk 0:01:10.3]} 17... g6 {[%clk 0:02:38.4]} 18. Nc5
{[%clk 0:01:05.9]} 18... Bc2 {[%clk 0:02:29.4]} 19. Rc1 {[%clk 0:00:55.4]} 19...
Bxb1 {[%clk 0:02:26.2]} 20. Nxb1 {[%clk 0:00:54.2]} 20... h5 {[%clk 0:02:21.4]}
21. Qh3 {[%clk 0:00:52.9]} 21... Nd7 {[%clk 0:02:16.8]} 22. a3 {[%clk
0:00:39.9]} 22... Nc6 {[%clk 0:02:05.9]} 23. b4 {[%clk 0:00:32.8]} 23... Nxc5
{[%clk 0:02:06]} 24. bxc5 {[%clk 0:00:30.7]} 24... Qb2 {[%clk 0:02:04.3]} 25.
Nc3 {[%clk 0:00:28.3]} 25... b5 {[%clk 0:01:56.9]} 26. cxb6 {[%clk 0:00:16.4]}
26... Qxb6 {[%clk 0:01:52.5]} 27. Nxd5 {[%clk 0:00:16.6]} 27... Qb7 {[%clk
0:01:45.5]} 28. Rab1 {[%clk 0:00:14.8]} 28... Qa7 {[%clk 0:01:39]} 29. Nxe7
{[%clk 0:00:14.1]} 29... Qxe7 {[%clk 0:01:39.7]} 30. Rxc6 {[%clk 0:00:08.4]}
30... Rxc6 {[%clk 0:01:38]} 31. Rb8+ {[%clk 0:00:08.4]} 31... Kd7 {[%clk
0:01:38.6]} 32. Rxh8 {[%clk 0:00:09.1]} 32... Qxa3 {[%clk 0:01:36]} 33. Bg5
{[%clk 0:00:08.9]} 33... Rb6 {[%clk 0:01:24.8]} 34. Rd8+ {[%clk 0:00:07]} 34...
Kc7 {[%clk 0:01:25.3]} 35. Qf1 {[%clk 0:00:07.6]} 35... Qa2 {[%clk 0:01:22.3]}
36. Qc1+ {[%clk 0:00:05.6]} 36... Rc6 {[%clk 0:01:21.5]} 37. Qd2 {[%clk
0:00:04.5]} 37... Qxd2 {[%clk 0:01:20.3]} 38. Bxd2 {[%clk 0:00:03.8]} 38... Kxd8
{[%clk 0:01:20.6]} 39. Ba5+ {[%clk 0:00:02.8]} 39... Kd7 {[%clk 0:01:20.5]} 0-1

[Event "Early-Titled-Tuesday-Blitz-May-14-2024"]
[Site "Chess.com"]
[Date "2024.05.14"]
[Round "7"]
[White "HanSchut"]
[Black "CristhianPortalR"]
[Result "1/2-1/2"]
[WhiteElo "2396"]
[BlackElo "2542"]
[TimeControl "180+1"]
[EndTime "9:19:03 PDT"]
[Termination "Game drawn by agreement"]

1. e4 {[%clk 0:02:57.1]} 1... c5 {[%clk 0:02:58.9]} 2. Nf3 {[%clk 0:02:54.4]}
2... d6 {[%clk 0:02:59.2]} 3. d4 {[%clk 0:02:54.8]} 3... cxd4 {[%clk 0:03:00.1]}
4. Nxd4 {[%clk 0:02:55.4]} 4... Nf6 {[%clk 0:03:00.1]} 5. f3 {[%clk 0:02:56.1]}
5... a6 {[%clk 0:02:59.6]} 6. c4 {[%clk 0:02:55.4]} 6... e6 {[%clk 0:02:47.6]}
7. Nc3 {[%clk 0:02:54.9]} 7... Be7 {[%clk 0:02:48.2]} 8. Be3 {[%clk 0:02:54.9]}
8... O-O {[%clk 0:02:47.5]} 9. Be2 {[%clk 0:02:55.5]} 9... Nc6 {[%clk
0:02:46.3]} 10. O-O {[%clk 0:02:55.4]} 10... Rb8 {[%clk 0:02:44.4]} 11. Rc1
{[%clk 0:02:53]} 11... Bd7 {[%clk 0:02:42.1]} 12. Qd2 {[%clk 0:02:52.4]} 12...
Nxd4 {[%clk 0:02:36.5]} 13. Bxd4 {[%clk 0:02:53.3]} 13... b5 {[%clk 0:02:36.8]}
14. cxb5 {[%clk 0:02:53.7]} 14... axb5 {[%clk 0:02:37.7]} 15. b4 {[%clk
0:02:54.1]} 15... e5 {[%clk 0:02:26.5]} 16. Be3 {[%clk 0:02:50.7]} 16... Be6
{[%clk 0:02:05.2]} 17. a4 {[%clk 0:02:42.7]} 17... bxa4 {[%clk 0:02:03.3]} 18.
b5 {[%clk 0:02:43.2]} 18... d5 {[%clk 0:02:02.9]} 19. exd5 {[%clk 0:02:36.9]}
19... Nxd5 {[%clk 0:02:02.6]} 20. Nxd5 {[%clk 0:02:34.7]} 20... Qxd5 {[%clk
0:02:01.1]} 21. Qxd5 {[%clk 0:02:21.8]} 21... Bxd5 {[%clk 0:01:59.9]} 22. b6
{[%clk 0:02:19.7]} 22... a3 {[%clk 0:01:59.4]} 23. Rfd1 {[%clk 0:02:19.2]} 23...
Be6 {[%clk 0:01:59.1]} 24. Bc4 {[%clk 0:02:15.2]} 24... Bf5 {[%clk 0:01:49.8]}
25. Bd5 {[%clk 0:02:02]} 25... Rfd8 {[%clk 0:01:45.6]} 26. b7 {[%clk 0:01:54.2]}
26... Rxd5 {[%clk 0:01:29.9]} 27. Rxd5 {[%clk 0:01:55.1]} 27... Rxb7 {[%clk
0:01:30]} 28. Rxe5 {[%clk 0:01:50.5]} 28... Be6 {[%clk 0:01:28.7]} 29. Ra5
{[%clk 0:01:40.5]} 29... f6 {[%clk 0:01:23.6]} 30. Rc6 {[%clk 0:01:16.3]} 30...
Kf7 {[%clk 0:01:12.9]} 31. Rb6 {[%clk 0:01:00.7]} 31... Rd7 {[%clk 0:01:09.3]}
32. Rba6 {[%clk 0:00:56.3]} 32... Rd1+ {[%clk 0:01:04.8]} 33. Kf2 {[%clk
0:00:55.9]} 33... Bb4 {[%clk 0:00:38.3]} 34. Ra7+ {[%clk 0:00:46.3]} 34... Kg6
{[%clk 0:00:37.7]} 35. Ra4 {[%clk 0:00:40.9]} 35... Rb1 {[%clk 0:00:32.8]} 36.
Rxb4 {[%clk 0:00:34.7]} 1/2-1/2

[Event "Early-Titled-Tuesday-Blitz-May-14-2024"]
[Site "Chess.com"]
[Date "2024.05.14"]
[Round "7"]
[White "Shushik"]
[Black "temus_galaktionov"]
[Result "0-1"]
[WhiteElo "2546"]
[BlackElo "2855"]
[TimeControl "180+1"]
[EndTime "9:19:04 PDT"]
[Termination "temus_galaktionov won by resignation"]

1. e4 {[%clk 0:03:00.9]} 1... c6 {[%clk 0:03:00.9]} 2. d4 {[%clk 0:03:00.3]}
2... g6 {[%clk 0:03:01.1]} 3. Nc3 {[%clk 0:02:59.5]} 3... d6 {[%clk 0:03:02]} 4.
Be3 {[%clk 0:02:58.1]} 4... Bg7 {[%clk 0:03:02.6]} 5. Qd2 {[%clk 0:02:57.9]}
5... Nd7 {[%clk 0:03:03.3]} 6. O-O-O {[%clk 0:02:57.2]} 6... Qa5 {[%clk
0:03:03.1]} 7. Kb1 {[%clk 0:02:49.5]} 7... b5 {[%clk 0:03:03]} 8. a3 {[%clk
0:02:47.4]} 8... Ngf6 {[%clk 0:03:02.4]} 9. f3 {[%clk 0:02:45.2]} 9... Rb8
{[%clk 0:03:02]} 10. g4 {[%clk 0:02:20.8]} 10... b4 {[%clk 0:03:01.1]} 11. Na2
{[%clk 0:02:18.5]} 11... c5 {[%clk 0:03:01.3]} 12. e5 {[%clk 0:02:10.3]} 12...
dxe5 {[%clk 0:02:58.2]} 13. dxe5 {[%clk 0:02:10.6]} 13... Nxe5 {[%clk
0:02:57.5]} 14. Bxc5 {[%clk 0:02:06.1]} 14... O-O {[%clk 0:02:54.3]} 15. Bxe7
{[%clk 0:01:52.2]} 15... Re8 {[%clk 0:02:50.5]} 16. Bxb4 {[%clk 0:01:50.4]}
16... Qb6 {[%clk 0:02:48.5]} 17. Be2 {[%clk 0:01:07.4]} 17... Bb7 {[%clk
0:02:40.2]} 18. Ba5 {[%clk 0:00:44.9]} 18... Qc5 {[%clk 0:02:35.8]} 19. Qc3
{[%clk 0:00:37.4]} 19... Qe7 {[%clk 0:02:31.7]} 20. Qc7 {[%clk 0:00:35.7]} 20...
Nfd7 {[%clk 0:02:28.2]} 21. Nh3 {[%clk 0:00:30.6]} 21... Rec8 {[%clk 0:02:23]}
22. Qd6 {[%clk 0:00:30.1]} 22... Qh4 {[%clk 0:02:23]} 23. Nf4 {[%clk 0:00:22.3]}
23... Bf8 {[%clk 0:02:16.8]} 24. Qd2 {[%clk 0:00:22.5]} 24... Nc5 {[%clk
0:02:12.9]} 25. Bb4 {[%clk 0:00:21.3]} 25... Nxf3 {[%clk 0:02:11.4]} 26. Bxf3
{[%clk 0:00:19.5]} 26... Bxf3 {[%clk 0:02:12.3]} 27. Qd4 {[%clk 0:00:18.7]}
27... Rd8 {[%clk 0:02:01.5]} 28. Rhf1 {[%clk 0:00:09.8]} 28... Rxd4 {[%clk
0:02:00.1]} 29. Rxd4 {[%clk 0:00:10.7]} 29... Ba8 {[%clk 0:01:56.7]} 30. Rfd1
{[%clk 0:00:10.6]} 30... Qxg4 {[%clk 0:01:51.1]} 31. Nd5 {[%clk 0:00:08.6]}
31... Qf5 {[%clk 0:01:50.3]} 32. Nac3 {[%clk 0:00:07.2]} 32... Ne6 {[%clk
0:01:47.6]} 33. R4d3 {[%clk 0:00:07.3]} 33... Bxd5 {[%clk 0:01:43.4]} 34. Nxd5
{[%clk 0:00:07.2]} 34... Bxb4 {[%clk 0:01:43]} 35. axb4 {[%clk 0:00:08]} 35...
Kg7 {[%clk 0:01:43]} 36. b3 {[%clk 0:00:06.7]} 36... Nf4 {[%clk 0:01:40.7]} 37.
Rd4 {[%clk 0:00:06.6]} 37... Nxd5 {[%clk 0:01:40.3]} 38. Rxd5 {[%clk 0:00:06.7]}
38... Qf2 {[%clk 0:01:40.3]} 39. R5d2 {[%clk 0:00:06.8]} 39... Qh4 {[%clk
0:01:39.6]} 40. Rd4 {[%clk 0:00:06.4]} 40... Qxh2 {[%clk 0:01:39.5]} 41. Kb2
{[%clk 0:00:06.8]} 41... Rb7 {[%clk 0:01:39.1]} 42. R1d2 {[%clk 0:00:07.3]}
42... Qe5 {[%clk 0:01:39]} 43. c3 {[%clk 0:00:06.8]} 43... h5 {[%clk 0:01:39.2]}
44. Rd5 {[%clk 0:00:06.8]} 44... Qf6 {[%clk 0:01:39.2]} 45. Rd6 {[%clk
0:00:07.1]} 45... Qe7 {[%clk 0:01:39.3]} 46. R6d4 {[%clk 0:00:06.6]} 46... f5
{[%clk 0:01:39.3]} 47. c4 {[%clk 0:00:06]} 47... g5 {[%clk 0:01:39.5]} 48. c5
{[%clk 0:00:06]} 48... Qe5 {[%clk 0:01:38.8]} 49. Ka2 {[%clk 0:00:05.4]} 49...
h4 {[%clk 0:01:37]} 50. c6 {[%clk 0:00:05.1]} 50... Rc7 {[%clk 0:01:37.3]} 51.
Rd7+ {[%clk 0:00:05.4]} 51... Kg6 {[%clk 0:01:37]} 52. R2d6+ {[%clk 0:00:05]}
52... Kh5 {[%clk 0:01:36.4]} 53. Rxc7 {[%clk 0:00:05.5]} 53... Qxd6 {[%clk
0:01:36.6]} 54. Rh7+ {[%clk 0:00:05.7]} 54... Kg6 {[%clk 0:01:36.1]} 55. c7
{[%clk 0:00:05.9]} 55... Qa6+ {[%clk 0:01:35.6]} 56. Kb2 {[%clk 0:00:05.4]}
56... Kxh7 {[%clk 0:01:35.7]} 0-1

[Event "Early-Titled-Tuesday-Blitz-May-14-2024"]
[Site "Chess.com"]
[Date "2024.05.14"]
[Round "7"]
[White "zajka-molotok"]
[Black "JeFumeDesClopes"]
[Result "1-0"]
[WhiteElo "2553"]
[BlackElo "2691"]
[TimeControl "180+1"]
[EndTime "9:19:05 PDT"]
[Termination "zajka-molotok won by resignation"]

1. e4 {[%clk 0:03:00.9]} 1... g6 {[%clk 0:02:57.2]} 2. d4 {[%clk 0:02:59.7]}
2... Bg7 {[%clk 0:02:57.8]} 3. Nf3 {[%clk 0:02:55.8]} 3... d6 {[%clk 0:02:58.2]}
4. Be3 {[%clk 0:02:54.9]} 4... a6 {[%clk 0:02:53.4]} 5. c3 {[%clk 0:02:53.3]}
5... Nf6 {[%clk 0:02:52.1]} 6. Bd3 {[%clk 0:02:53.2]} 6... Nc6 {[%clk 0:02:52]}
7. O-O {[%clk 0:02:49.1]} 7... O-O {[%clk 0:02:49.5]} 8. d5 {[%clk 0:02:48.2]}
8... Nb8 {[%clk 0:02:49.2]} 9. c4 {[%clk 0:02:47.9]} 9... c6 {[%clk 0:02:44.4]}
10. Nc3 {[%clk 0:02:47.4]} 10... Nbd7 {[%clk 0:02:33.4]} 11. h3 {[%clk
0:02:40.6]} 11... Nc5 {[%clk 0:02:31.6]} 12. Bc2 {[%clk 0:02:39.9]} 12... a5
{[%clk 0:02:26.5]} 13. e5 {[%clk 0:02:31.4]} 13... Nfd7 {[%clk 0:02:13.3]} 14.
exd6 {[%clk 0:02:26.7]} 14... exd6 {[%clk 0:01:56.5]} 15. dxc6 {[%clk
0:02:26.1]} 15... Ne5 {[%clk 0:01:48.2]} 16. Nxe5 {[%clk 0:01:57.6]} 16... Bxe5
{[%clk 0:01:47.3]} 17. Bxc5 {[%clk 0:01:51.7]} 17... dxc5 {[%clk 0:01:46.4]} 18.
Qxd8 {[%clk 0:01:51.2]} 18... Rxd8 {[%clk 0:01:46.9]} 19. Rad1 {[%clk
0:01:48.9]} 19... Rd4 {[%clk 0:01:16]} 20. Be4 {[%clk 0:01:40.2]} 20... bxc6
{[%clk 0:01:09.5]} 21. Bxc6 {[%clk 0:01:39.7]} 21... Rb8 {[%clk 0:01:09.2]} 22.
Nb5 {[%clk 0:01:37.9]} 22... Rxc4 {[%clk 0:00:57.7]} 23. Rfe1 {[%clk 0:01:30.4]}
23... Bb7 {[%clk 0:00:44.6]} 24. Bxb7 {[%clk 0:01:13.9]} 24... Rxb7 {[%clk
0:00:44.8]} 25. Na3 {[%clk 0:01:14.4]} 25... Rd4 {[%clk 0:00:45.2]} 26. b3
{[%clk 0:01:07.3]} 26... Rxd1 {[%clk 0:00:42.1]} 27. Rxd1 {[%clk 0:01:07.1]}
27... a4 {[%clk 0:00:37]} 28. Nc4 {[%clk 0:01:05.9]} 28... axb3 {[%clk
0:00:26.3]} 29. axb3 {[%clk 0:00:58.7]} 29... Bd4 {[%clk 0:00:26.5]} 30. Rd3
{[%clk 0:00:58.3]} 30... Kf8 {[%clk 0:00:25.8]} 31. g3 {[%clk 0:00:53.7]} 31...
Ke7 {[%clk 0:00:26]} 32. Kg2 {[%clk 0:00:53.9]} 32... Ke6 {[%clk 0:00:26.6]} 33.
g4 {[%clk 0:00:49.4]} 33... Kd5 {[%clk 0:00:25.6]} 34. Rf3 {[%clk 0:00:43.2]}
34... f6 {[%clk 0:00:25.5]} 35. h4 {[%clk 0:00:36.9]} 35... Ke4 {[%clk
0:00:22.6]} 36. Nd6+ {[%clk 0:00:35.2]} 1-0

[Event "Early-Titled-Tuesday-Blitz-May-14-2024"]
[Site "Chess.com"]
[Date "2024.05.14"]
[Round "7"]
[White "Vesper2018"]
[Black "TregubovP"]
[Result "1-0"]
[WhiteElo "2562"]
[BlackElo "2695"]
[TimeControl "180+1"]
[EndTime "9:19:10 PDT"]
[Termination "Vesper2018 won by resignation"]

1. e4 {[%clk 0:02:55.2]} 1... c5 {[%clk 0:02:59.6]} 2. Nf3 {[%clk 0:02:55.3]}
2... e6 {[%clk 0:02:59.8]} 3. Nc3 {[%clk 0:02:54.6]} 3... Nc6 {[%clk 0:02:58.7]}
4. d4 {[%clk 0:02:54.1]} 4... cxd4 {[%clk 0:02:59]} 5. Nxd4 {[%clk 0:02:54.7]}
5... Nf6 {[%clk 0:02:59.6]} 6. Ndb5 {[%clk 0:02:51.9]} 6... Bb4 {[%clk
0:02:59.5]} 7. a3 {[%clk 0:02:50.6]} 7... Bxc3+ {[%clk 0:03:00]} 8. Nxc3 {[%clk
0:02:51.2]} 8... d5 {[%clk 0:03:00.6]} 9. exd5 {[%clk 0:02:51.6]} 9... exd5
{[%clk 0:03:00.6]} 10. Bd3 {[%clk 0:02:51.9]} 10... O-O {[%clk 0:03:00.4]} 11.
O-O {[%clk 0:02:51.5]} 11... d4 {[%clk 0:03:00.9]} 12. Ne2 {[%clk 0:02:51.3]}
12... Bg4 {[%clk 0:03:01.4]} 13. f3 {[%clk 0:02:49.2]} 13... Bh5 {[%clk
0:03:01.4]} 14. Bg5 {[%clk 0:02:48.6]} 14... Qd6 {[%clk 0:02:55.8]} 15. Nf4
{[%clk 0:02:42.1]} 15... Bg6 {[%clk 0:02:55.5]} 16. Nxg6 {[%clk 0:02:42.2]}
16... hxg6 {[%clk 0:02:53.2]} 17. Qd2 {[%clk 0:02:41.7]} 17... Rfe8 {[%clk
0:02:48.5]} 18. Rfe1 {[%clk 0:02:41]} 18... Nd5 {[%clk 0:02:46.6]} 19. Bh4
{[%clk 0:02:37.5]} 19... Nce7 {[%clk 0:02:24.4]} 20. Bf2 {[%clk 0:02:34.8]}
20... Rad8 {[%clk 0:02:01.3]} 21. Bxd4 {[%clk 0:02:22.1]} 21... Nf4 {[%clk
0:01:57.3]} 22. c3 {[%clk 0:02:21.4]} 22... Nxd3 {[%clk 0:01:51.5]} 23. Qxd3
{[%clk 0:02:21.2]} 23... Nf5 {[%clk 0:01:50.5]} 24. Rxe8+ {[%clk 0:02:16.9]}
24... Rxe8 {[%clk 0:01:50.2]} 25. Rd1 {[%clk 0:02:15.8]} 25... Nxd4 {[%clk
0:01:46.4]} 26. Qxd4 {[%clk 0:02:10.5]} 26... Qa6 {[%clk 0:01:39.4]} 27. c4
{[%clk 0:02:07.3]} 27... Qa4 {[%clk 0:01:35.8]} 28. Rd2 {[%clk 0:02:01.6]} 28...
Re1+ {[%clk 0:01:20.1]} 29. Kf2 {[%clk 0:02:01]} 29... Qe8 {[%clk 0:01:20.4]}
30. Qd8 {[%clk 0:01:51.1]} 30... Re2+ {[%clk 0:01:20]} 31. Kg3 {[%clk
0:01:48.2]} 31... Qxd8 {[%clk 0:01:16.5]} 32. Rxd8+ {[%clk 0:01:48.7]} 32... Kh7
{[%clk 0:01:17]} 33. b4 {[%clk 0:01:38.9]} 33... Ra2 {[%clk 0:01:03.1]} 34. Rd7
{[%clk 0:01:38.7]} 34... f5 {[%clk 0:00:58.6]} 35. Rxb7 {[%clk 0:01:35.3]} 35...
Rxa3 {[%clk 0:00:58.7]} 36. Kf4 {[%clk 0:01:34.9]} 36... Rc3 {[%clk 0:00:53.9]}
37. c5 {[%clk 0:01:34.7]} 37... a5 {[%clk 0:00:54.4]} 38. bxa5 {[%clk
0:01:32.7]} 38... Rc4+ {[%clk 0:00:51.7]} 39. Kg5 {[%clk 0:01:30.4]} 39... Rxc5
{[%clk 0:00:51.1]} 40. a6 {[%clk 0:01:30.5]} 40... Ra5 {[%clk 0:00:51.7]} 41. a7
{[%clk 0:01:30.9]} 41... Ra2 {[%clk 0:00:50]} 42. g3 {[%clk 0:01:29.1]} 42...
Ra3 {[%clk 0:00:48.5]} 43. h4 {[%clk 0:01:25.3]} 43... Ra4 {[%clk 0:00:48.3]}
44. g4 {[%clk 0:01:14.9]} 44... fxg4 {[%clk 0:00:47.3]} 45. fxg4 {[%clk
0:01:14.5]} 45... Ra5+ {[%clk 0:00:46.5]} 46. Kf4 {[%clk 0:01:14.8]} 46... g5+
{[%clk 0:00:40.2]} 47. hxg5 {[%clk 0:01:13.2]} 47... Kg6 {[%clk 0:00:40.5]} 48.
Ke4 {[%clk 0:01:08.9]} 48... Kxg5 {[%clk 0:00:25.4]} 49. Rxg7+ {[%clk
0:01:07.3]} 49... Kf6 {[%clk 0:00:25.9]} 50. Rb7 {[%clk 0:01:07.1]} 50... Ke6
{[%clk 0:00:22.8]} 51. g5 {[%clk 0:01:04.5]} 1-0

[Event "Early-Titled-Tuesday-Blitz-May-14-2024"]
[Site "Chess.com"]
[Date "2024.05.14"]
[Round "7"]
[White "Artem_Koval"]
[Black "Makswolf200817"]
[Result "0-1"]
[WhiteElo "2572"]
[BlackElo "2781"]
[TimeControl "180+1"]
[EndTime "9:19:12 PDT"]
[Termination "Makswolf200817 won by resignation"]

1. d4 {[%clk 0:03:00.9]} 1... Nf6 {[%clk 0:02:58.3]} 2. Nf3 {[%clk 0:03:00.1]}
2... e6 {[%clk 0:02:55.5]} 3. Bf4 {[%clk 0:02:57.8]} 3... b6 {[%clk 0:02:53.9]}
4. e3 {[%clk 0:02:57.7]} 4... Be7 {[%clk 0:02:52.9]} 5. h3 {[%clk 0:02:57.4]}
5... Bb7 {[%clk 0:02:49.6]} 6. Nbd2 {[%clk 0:02:57.8]} 6... O-O {[%clk
0:02:48.8]} 7. Bd3 {[%clk 0:02:58.3]} 7... d6 {[%clk 0:02:47.3]} 8. O-O {[%clk
0:02:58]} 8... c5 {[%clk 0:02:44.1]} 9. c3 {[%clk 0:02:57.8]} 9... Nbd7 {[%clk
0:02:41.1]} 10. a4 {[%clk 0:02:57.7]} 10... a6 {[%clk 0:02:40.4]} 11. Qe2 {[%clk
0:02:57.5]} 11... Re8 {[%clk 0:02:39.2]} 12. Bh2 {[%clk 0:02:57.2]} 12... Bf8
{[%clk 0:02:38.9]} 13. e4 {[%clk 0:02:57.9]} 13... cxd4 {[%clk 0:02:36.3]} 14.
cxd4 {[%clk 0:02:58.8]} 14... e5 {[%clk 0:02:36.6]} 15. dxe5 {[%clk 0:02:51.3]}
15... dxe5 {[%clk 0:02:26.9]} 16. Nc4 {[%clk 0:02:46.1]} 16... Nc5 {[%clk
0:02:27.1]} 17. Rad1 {[%clk 0:02:29.1]} 17... Nxd3 {[%clk 0:02:10.5]} 18. Rxd3
{[%clk 0:02:30]} 18... Qc7 {[%clk 0:02:11.1]} 19. Ncxe5 {[%clk 0:02:10.1]} 19...
Bxe4 {[%clk 0:02:10.1]} 20. Re3 {[%clk 0:02:10.4]} 20... Qb7 {[%clk 0:02:03.7]}
21. Re1 {[%clk 0:01:56.6]} 21... Bd5 {[%clk 0:01:56]} 22. Bg3 {[%clk 0:01:08.8]}
22... Bc5 {[%clk 0:01:49.3]} 23. Bh4 {[%clk 0:00:47.1]} 23... Bxe3 {[%clk
0:01:41.9]} 24. Qxe3 {[%clk 0:00:48]} 24... Bxf3 {[%clk 0:01:30.5]} 25. gxf3
{[%clk 0:00:34.6]} 25... Nd5 {[%clk 0:01:23.3]} 26. Qb3 {[%clk 0:00:20.5]} 26...
Re6 {[%clk 0:01:15.1]} 27. Bg3 {[%clk 0:00:17.2]} 27... Rae8 {[%clk 0:01:13.9]}
28. Re4 {[%clk 0:00:10.7]} 28... Nf6 {[%clk 0:00:35.3]} 29. Re3 {[%clk
0:00:10.3]} 29... Qd5 {[%clk 0:00:34.1]} 30. Qxb6 {[%clk 0:00:08.4]} 30... Rxb6
{[%clk 0:00:33.5]} 0-1